bitfinex-derivatives/quotes_BTCF0:USTF0_20250402
["timestamp","ask_amount","ask_price","bid_price","bid_amount"]
[1743619538597,0.1731672,86620.0,86619.0,0.1154439]
[1743619538798,0.1731672,86620.0,86619.0,0.1160439]
[1743619540097,0.17404721,86620.0,86619.0,0.1160439]
[1743619543010,0.17404721,86620.0,86619.0,0.32328955]
[1743619544208,0.17404721,86620.0,86619.0,0.20784565]
[1743619544405,0.30505518,86620.0,86619.0,0.20784565]
[1743619544805,0.40005518,86620.0,86619.0,0.20784565]
[1743619545107,0.1154511,86615.0,86614.0,0.27665492]
[1743619545308,0.11649111,86615.0,86614.0,0.27769492]
[1743619545509,0.29230097,86615.0,86614.0,0.27769492]
[1743619548514,0.33820097,86615.0,86614.0,0.27769492]
[1743619550315,0.69900097,86615.0,86614.0,0.27769492]
[1743619552414,0.70900097,86615.0,86614.0,0.27769492]
[1743619552810,0.70900097,86615.0,86614.0,0.00104]
[1743619553014,0.1154577,86610.0,86609.0,0.00017315]
[1743619553319,0.1165377,86610.0,86609.0,0.00017315]
[1743619553512,0.2612377,86610.0,86609.0,0.00017315]
[1743619554916,0.00108,86610.0,86609.0,0.11563225]
[1743619555121,0.1165377,86610.0,86609.0,0.47707225]
[1743619555420,0.11649771,86610.0,86609.0,0.57467225]
[1743619555618,0.1154577,86610.0,86609.0,0.57467225]
[1743619557622,0.1154551,86614.0,86613.0,0.1154524]
[1743619557920,0.11657511,86614.0,86613.0,0.1646524]
[1743619558121,0.11657511,86614.0,86613.0,0.2141524]
[1743619559422,0.11657241,86614.0,86613.0,0.2141524]
[1743619560324,0.16407241,86614.0,86613.0,0.2141524]
[1743619562524,0.16407241,86614.0,86613.0,0.0987]
[1743619562726,0.21047241,86614.0,86613.0,0.0492]
[1743619563023,0.00112001,86614.0,86613.0,0.1646537]
[1743619563224,0.1731745,86620.0,86619.0,0.0577219]
[1743619563413,0.1731745,86620.0,86618.0,0.4762458]
[1743619563414,0.00104001,86620.0,86618.0,0.4762458]
[1743619563617,0.1659458,86619.0,86618.0,0.4768458]
[1743619563832,0.16698581,86619.0,86618.0,0.3614]
[1743619564126,0.38679221,86619.0,86618.0,0.0006]
[1743619564324,0.1154577,86610.0,86609.0,0.63762807]
[1743619564531,0.11649771,86610.0,86609.0,0.27746807]
[1743619564731,0.69790411,86610.0,86609.0,0.27746807]
[1743619565029,0.69790411,86610.0,86609.0,0.00081315]
[1743619566320,0.05154001,86610.0,86609.0,0.47707225]
[1743619566528,0.1659577,86610.0,86609.0,0.36161315]
[1743619566728,0.1670377,86610.0,86609.0,0.36161315]
[1743619567024,0.2131377,86610.0,86609.0,0.36161315]
[1743619567336,0.2131377,86610.0,86609.0,0.47707225]
[1743619567938,0.1670377,86610.0,86609.0,0.47707225]
[1743619568236,0.13838506,86626.0,86623.0,0.1154404]
[1743619568530,0.00112,86624.0,86623.0,0.4768404]
[1743619568737,0.1165591,86624.0,86623.0,0.4768404]
[1743619569933,0.00112,86624.0,86623.0,0.4768404]
[1743619570131,0.1165591,86624.0,86623.0,0.4768404]
[1743619570329,0.00112,86624.0,86623.0,0.4768404]
[1743619570529,0.0004,86624.0,86623.0,0.4768404]
[1743619571236,0.00112,86624.0,86623.0,0.4768404]
[1743619572029,0.0004,86624.0,86623.0,0.4768404]
[1743619572336,0.0012,86624.0,86623.0,0.4768404]
[1743619572736,0.0004,86624.0,86623.0,0.4768404]
[1743619573126,0.1158391,86624.0,86623.0,0.4768404]
[1743619573735,0.1641391,86624.0,86623.0,0.4768404]
[1743619574437,0.1649391,86624.0,86623.0,0.4768404]
[1743619574937,0.1649391,86624.0,86623.0,0.5244404]
[1743619575128,0.1648991,86624.0,86623.0,0.5244404]
[1743619577435,0.00116,86624.0,86623.0,0.5244404]
[1743619577636,0.0004,86624.0,86623.0,0.5244404]
[1743619579033,0.0004,86624.0,86623.0,0.5745404]
[1743619581842,0.0004,86624.0,86623.0,0.9353404]
[1743619583446,0.1158391,86624.0,86623.0,0.9353404]
[1743619583945,0.00116,86624.0,86623.0,0.9353404]
[1743619584151,0.0508,86624.0,86623.0,0.9353404]
[1743619584835,0.0004,86624.0,86623.0,0.9353404]
[1743619585034,0.06941547,86636.0,86623.0,0.9353404]
[1743619585035,0.01170387,86636.0,86629.0,0.0577161]
[1743619585240,0.1658252,86635.0,86634.0,0.1154258]
[1743619585443,0.05112,86635.0,86634.0,0.1642258]
[1743619585835,0.1665444,86635.0,86634.0,0.1642258]
[1743619586344,0.05112,86635.0,86634.0,0.1642258]
[1743619587149,0.1665444,86635.0,86634.0,0.1642258]
[1743619587936,0.05112,86635.0,86634.0,0.1642258]
[1743619588348,0.05112,86635.0,86634.0,0.17283744]
[1743619588646,0.0004,86640.0,86639.0,0.1154191]
[1743619588847,0.12760085,86640.0,86639.0,0.1646991]
[1743619589047,0.00112,86640.0,86639.0,0.1646991]
[1743619589443,0.0004,86640.0,86639.0,0.1646991]
[1743619589647,0.00112,86640.0,86639.0,0.1646991]
[1743619589838,0.0004,86640.0,86639.0,0.1646991]
[1743619590238,0.10368642,86650.0,86649.0,0.1154058]
[1743619590453,0.10368642,86650.0,86649.0,0.4762058]
[1743619590454,0.10444642,86650.0,86649.0,0.4762058]
[1743619590649,0.10444642,86650.0,86649.0,0.4768858]
[1743619590946,0.1161644,86650.0,86649.0,0.5254858]
[1743619591450,0.00076,86650.0,86649.0,0.5254858]
[1743619591669,0.1042013,86652.0,86651.0,0.1154031]
[1743619591843,0.1517613,86652.0,86651.0,0.1160431]
[1743619592738,0.09406,86652.0,86651.0,0.1160431]
[1743619593840,0.2094618,86652.0,86651.0,0.1160431]
[1743619595254,0.09406,86652.0,86651.0,0.1160431]
[1743619595645,0.09402,86652.0,86651.0,0.1655431]
[1743619596144,0.04722,86652.0,86651.0,0.1655431]
[1743619596348,0.0465,86652.0,86651.0,0.1655431]
[1743619596552,0.0465,86652.0,86651.0,0.5263431]
[1743619596942,0.04722,86652.0,86651.0,0.5263431]
[1743619598348,0.09622,86652.0,86651.0,0.5263431]
[1743619598848,0.2116218,86652.0,86651.0,0.5263431]
[1743619599049,0.2116218,86652.0,86651.0,0.5759431]
[1743619600246,0.2116218,86652.0,86651.0,0.4768431]
[1743619600443,0.3407163,86652.0,86651.0,0.00064]
[1743619600644,0.3507163,86652.0,86651.0,0.00064]
[1743619600955,0.3507163,86652.0,86639.0,0.34548455]
[1743619600956,0.1154178,86640.0,86639.0,0.34548455]
[1743619601151,0.55513781,86640.0,86639.0,0.34616455]
[1743619601353,0.1154258,86634.0,86626.0,0.00017315]
[1743619601549,0.1154351,86627.0,86626.0,0.00017315]
[1743619601743,0.1154431,86621.0,86620.0,0.53594584]
[1743619602050,0.1154431,86621.0,86620.0,0.53658584]
[1743619602051,0.33438804,86621.0,86620.0,0.53658584]
[1743619602245,0.1154458,86619.0,86618.0,0.27602031]
[1743619602445,0.1169258,86619.0,86618.0,0.27602031]
[1743619602642,0.60304338,86619.0,86618.0,0.27602031]
[1743619602847,0.70234338,86619.0,86618.0,0.27602031]
[1743619604460,0.34154338,86619.0,86618.0,0.63682031]
[1743619605353,0.34154338,86619.0,86618.0,0.27602031]
[1743619606066,0.35303241,86619.0,86618.0,0.27602031]
[1743619606552,0.1154498,86616.0,86615.0,0.00046181]
[1743619606752,0.1169698,86616.0,86615.0,0.00046181]
[1743619607460,0.4777698,86616.0,86615.0,0.00046181]
[1743619610360,0.00152,86616.0,86615.0,0.00046181]
[1743619610664,0.1154498,86616.0,86615.0,0.11591291]
[1743619610858,0.1169298,86616.0,86615.0,0.16281291]
[1743619611756,0.1169298,86616.0,86615.0,0.04736181]
[1743619611962,0.1169298,86616.0,86615.0,0.00046181]
[1743619612355,0.2410725,86616.0,86615.0,0.00046181]
[1743619612556,0.3382725,86616.0,86615.0,0.00046181]
[1743619612962,0.6990725,86616.0,86615.0,0.00046181]
[1743619619154,0.3382725,86616.0,86615.0,0.00046181]
[1743619620168,0.3382725,86616.0,86615.0,0.09726181]
[1743619620367,0.2141298,86616.0,86615.0,0.09726181]
[1743619620866,0.2141298,86616.0,86615.0,0.04956181]
[1743619621165,0.2141298,86616.0,86615.0,0.00046181]
[1743619621166,0.33764852,86616.0,86615.0,0.00046181]
[1743619621467,0.1154564,86611.0,86610.0,0.00017315]
[1743619621766,0.1169364,86611.0,86610.0,0.00017315]
[1743619621971,0.34739648,86611.0,86610.0,0.00017315]
[1743619623557,0.1169364,86611.0,86610.0,0.04747315]
[1743619623753,0.1169364,86611.0,86610.0,0.52373085]
[1743619623953,0.1169364,86611.0,86610.0,0.57043085]
[1743619624373,0.00148,86611.0,86610.0,0.57043085]
[1743619624557,0.1154564,86611.0,86610.0,0.57043085]
[1743619624966,0.1169364,86611.0,86610.0,0.40767315]
[1743619625158,0.2195364,86611.0,86610.0,0.36097315]
[1743619625362,0.34877435,86611.0,86610.0,0.00017315]
[1743619625672,0.1154697,86601.0,86600.0,0.0483]
[1743619625864,0.11702971,86601.0,86600.0,0.0483]
[1743619626377,0.16482971,86601.0,86600.0,0.0483]
[1743619626557,0.1154844,86590.0,86586.0,0.0993]
[1743619626763,0.1154884,86587.0,86586.0,0.0993]
[1743619626959,0.1170084,86587.0,86586.0,0.0993]
[1743619627370,0.1648084,86587.0,86586.0,0.0993]
[1743619627563,0.1170084,86587.0,86586.0,0.0993]
[1743619627766,0.1170084,86587.0,86586.0,0.2147898]
[1743619628064,0.1170084,86587.0,86586.0,0.0993]
[1743619628260,0.1665084,86587.0,86586.0,0.1489]
[1743619628766,0.2134084,86587.0,86586.0,0.1489]
[1743619628970,0.1154924,86584.0,86583.0,0.00046198]
[1743619629264,0.23810108,86584.0,86583.0,0.00046198]
[1743619630369,0.50810108,86584.0,86583.0,0.00046198]
[1743619630567,0.0577482,86581.0,86568.0,0.00173264]
[1743619630771,0.4763044,86575.0,86566.0,0.40913116]
[1743619631070,0.1155138,86568.0,86559.0,0.0508]
[1743619631268,0.5542738,86568.0,86559.0,0.0508]
[1743619631467,0.83899956,86568.0,86559.0,0.0508]
[1743619631673,0.1155284,86557.0,86556.0,0.0468]
[1743619632065,0.24025416,86557.0,86556.0,0.0468]
[1743619632262,0.60105416,86557.0,86556.0,0.0468]
[1743619632469,0.70145416,86557.0,86556.0,0.0468]
[1743619632670,0.1155311,86555.0,86554.0,0.41276582]
[1743619632867,0.1934911,86555.0,86554.0,0.41276582]
[1743619633165,0.31943553,86555.0,86554.0,0.41276582]
[1743619633367,0.93023553,86555.0,86554.0,0.18206723]
[1743619633668,0.93023553,86555.0,86554.0,0.14586503]
[1743619633857,1.08023553,86555.0,86554.0,0.14586503]
[1743619634062,1.08023553,86555.0,86554.0,0.02156263]
[1743619634263,0.1155351,86552.0,86551.0,8e-08]
[1743619634472,0.35713803,86552.0,86551.0,8e-08]
[1743619634776,0.62873118,86552.0,86551.0,8e-08]
[1743619636066,0.47873118,86552.0,86551.0,8e-08]
[1743619636466,0.55821118,86552.0,86551.0,8e-08]
[1743619636662,0.1155551,86537.0,86536.0,0.04986008]
[1743619636975,0.11711511,86537.0,86536.0,0.04986008]
[1743619637174,0.24541931,86537.0,86536.0,0.09776008]
[1743619637968,0.24541931,86537.0,86536.0,0.04986008]
[1743619638163,0.51541931,86537.0,86536.0,0.04986008]
[1743619640764,0.45541931,86537.0,86536.0,0.04986008]
[1743619641677,0.48541931,86537.0,86536.0,0.04986008]
[1743619642771,0.24541931,86537.0,86536.0,0.04986008]
[1743619643278,0.50541931,86537.0,86536.0,0.04986008]
[1743619644681,0.24541931,86537.0,86536.0,0.04986008]
[1743619645974,0.47541931,86537.0,86536.0,0.04986008]
[1743619647573,0.47541931,86537.0,86536.0,0.09806008]
[1743619647775,0.11711511,86537.0,86536.0,0.09806008]
[1743619659779,0.11711511,86537.0,86536.0,0.21361658]
[1743619659979,0.00156001,86537.0,86536.0,0.57441658]
[1743619660183,0.1155532,86539.0,86538.0,0.0577768]
[1743619660388,0.00156001,86539.0,86538.0,0.0577768]
[1743619660590,0.17246214,86557.0,86545.0,0.1155445]
[1743619660787,0.1155361,86552.0,86550.0,0.1155378]
[1743619660988,0.06236971,86551.0,86550.0,0.1155378]
[1743619661192,0.17246214,86557.0,86556.0,0.1155298]
[1743619661594,0.28799124,86557.0,86556.0,0.1155298]
[1743619662596,0.1155311,86555.0,86554.0,0.4763316]
[1743619662783,0.1155311,86555.0,86554.0,0.3608]
[1743619663185,0.1637311,86555.0,86554.0,0.3608]
[1743619663494,0.28880714,86555.0,86554.0,0.3608]
[1743619663692,0.33530714,86555.0,86554.0,0.3608]
[1743619663889,0.1155391,86549.0,86540.0,0.27675552]
[1743619664292,0.2102391,86549.0,86540.0,0.27675552]
[1743619664693,0.2102391,86549.0,86540.0,0.39230632]
[1743619664891,0.2102391,86549.0,86540.0,0.27675552]
[1743619666098,0.21083911,86549.0,86540.0,0.39230652]
[1743619666299,0.21083911,86549.0,86537.0,0.0577774]
[1743619666595,0.21083911,86549.0,86543.0,0.2310918]
[1743619666798,0.21083911,86549.0,86548.0,0.00085326]
[1743619667295,0.21083911,86549.0,86548.0,0.00017326]
[1743619667890,0.16433911,86549.0,86548.0,0.00017326]
[1743619668198,0.16433911,86549.0,86548.0,0.00077326]
[1743619669301,0.16433911,86549.0,86548.0,0.11631376]
[1743619670400,0.11613911,86549.0,86548.0,0.11631376]
[1743619670697,0.00060001,86549.0,86548.0,0.11631376]
[1743619671086,0.1155369,86551.0,86550.0,0.1155378]
[1743619671297,0.1155369,86551.0,86550.0,0.4763378]
[1743619672603,0.1155369,86551.0,86550.0,0.4863378]
[1743619675009,0.1155369,86551.0,86550.0,0.5230378]
[1743619675412,0.1627369,86551.0,86550.0,0.5230378]
[1743619675612,0.1627369,86551.0,86550.0,0.5330378]
[1743619676217,0.1633769,86551.0,86550.0,0.5336778]
[1743619676709,0.04784,86551.0,86550.0,0.5336778]
[1743619676909,0.0472,86551.0,86550.0,0.5336778]
[1743619677317,0.23190435,86563.0,86562.0,0.1155218]
[1743619677515,0.23258435,86563.0,86562.0,0.1162018]
[1743619677712,0.23258435,86563.0,86562.0,0.1625018]
[1743619677917,0.2239624,86563.0,86562.0,0.1625018]
[1743619678523,0.23283138,86563.0,86562.0,0.1162018]
[1743619678814,0.27843138,86563.0,86562.0,0.1162018]
[1743619679020,0.4051036,86563.0,86562.0,0.1162018]
[1743619680019,0.4051036,86563.0,86562.0,0.00068]
[1743619680230,0.7659036,86563.0,86562.0,0.00068]
[1743619680513,0.1155271,86558.0,86557.0,0.1155272]
[1743619680718,0.11612711,86558.0,86557.0,0.1155272]
[1743619680920,0.21122711,86558.0,86557.0,0.1155272]
[1743619681121,0.1155284,86557.0,86556.0,0.1732945]
[1743619681425,0.00068,86557.0,86556.0,0.1739345]
[1743619681915,0.04938,86557.0,86556.0,0.1739345]
[1743619682122,0.0487,86557.0,86556.0,0.1739345]
[1743619682606,0.04930001,86557.0,86556.0,0.1739345]
[1743619682808,0.17246214,86574.0,86564.0,0.1155191]
[1743619683025,0.17246214,86574.0,86564.0,0.4770791]
[1743619683217,0.0487,86573.0,86564.0,0.4770791]
[1743619683421,0.0487,86573.0,86564.0,0.5725791]
[1743619684219,0.17246214,86574.0,86573.0,0.1155071]
[1743619684415,0.17306215,86574.0,86573.0,0.4771071]
[1743619684722,0.17306215,86574.0,86573.0,0.6235071]
[1743619684723,0.17326214,86574.0,86573.0,0.6235071]
[1743619685624,0.00860896,86589.0,86588.0,0.1154871]
[1743619685925,0.00960896,86589.0,86588.0,0.8381671]
[1743619686222,0.00860896,86589.0,86588.0,0.8381671]
[1743619686409,0.046,86591.0,86590.0,0.1154844]
[1743619686610,0.20663553,86596.0,86591.0,0.1154831]
[1743619686815,0.20663553,86596.0,86591.0,0.2092231]
[1743619687011,0.0493,86595.0,86591.0,0.2092231]
[1743619687212,0.0014,86592.0,86591.0,0.2092231]
[1743619687522,0.0004,86592.0,86591.0,0.2092231]
[1743619687721,0.20663553,86596.0,86594.0,0.1154791]
[1743619687919,0.0493,86604.0,86603.0,0.1154671]
[1743619688222,0.05034001,86604.0,86603.0,0.4773071]
[1743619688727,0.05034001,86604.0,86603.0,0.5695071]
[1743619689217,0.16580571,86604.0,86603.0,0.5695071]
[1743619689422,0.05034001,86604.0,86603.0,0.5695071]
[1743619692713,0.0493,86604.0,86603.0,0.5695071]
[1743619695827,0.00887861,86621.0,86620.0,0.1154444]
[1743619696126,0.00887861,86621.0,86620.0,0.4772444]
[1743619696324,0.0483,86622.0,86620.0,0.4772444]
[1743619696626,0.04934001,86622.0,86621.0,0.1154431]
[1743619696825,0.04934001,86622.0,86621.0,0.1653431]
[1743619697027,0.0483,86622.0,86621.0,0.1653431]
[1743619697726,0.0483,86622.0,86621.0,0.17393586]
[1743619700026,0.1637418,86622.0,86621.0,0.1164431]
[1743619700329,0.1647418,86622.0,86621.0,0.001]
[1743619701231,0.1647418,86622.0,86621.0,0.1164431]
[1743619701431,0.2114418,86622.0,86621.0,0.1164431]
[1743619704134,0.0493,86622.0,86621.0,0.1164431]
[1743619704434,0.0483,86622.0,86621.0,0.1655431]
[1743619707036,0.0493,86622.0,86621.0,0.1655431]
[1743619708233,0.0483,86622.0,86621.0,0.1655431]
[1743619708727,0.1637418,86622.0,86621.0,0.1655431]
[1743619708932,0.21338181,86622.0,86621.0,0.1164431]
[1743619709135,0.21338181,86622.0,86621.0,0.001]
[1743619709730,0.33765313,86622.0,86621.0,0.001]
[1743619711043,0.33765313,86622.0,86621.0,0.1164431]
[1743619711938,0.21338181,86622.0,86621.0,0.1164431]
[1743619712140,0.09794001,86622.0,86621.0,0.1164431]
[1743619712741,0.0969,86622.0,86621.0,0.1164431]
[1743619713243,0.09754,86622.0,86621.0,0.1164431]
[1743619714354,0.0969,86622.0,86621.0,0.1164431]
[1743619714534,0.0969,86622.0,86621.0,0.1646431]
[1743619714846,0.0979,86622.0,86621.0,0.1646431]
[1743619715246,0.0483,86622.0,86621.0,0.1646431]
[1743619715451,0.0493,86622.0,86621.0,0.2087431]
[1743619715650,0.0483,86622.0,86621.0,0.2087431]
[1743619715852,0.0493,86622.0,86621.0,0.2087431]
[1743619716652,0.0004,86640.0,86639.0,0.1154191]
[1743619716848,0.1158178,86640.0,86639.0,0.4775791]
[1743619717149,0.1171378,86640.0,86639.0,0.4775791]
[1743619719047,0.1171378,86640.0,86639.0,0.36216]
[1743619719240,0.1171378,86640.0,86639.0,0.00136]
[1743619719640,0.1154284,86632.0,86629.0,0.4185155]
[1743619719845,0.1167484,86632.0,86631.0,0.11700295]
[1743619720046,0.1167484,86632.0,86631.0,0.00157315]
[1743619720441,0.2076484,86632.0,86631.0,0.11700295]
[1743619722848,0.04802,86632.0,86631.0,0.47780295]
[1743619723048,0.0447,86639.0,86637.0,0.1154218]
[1743619723049,0.0444,86638.0,86637.0,0.1154218]
[1743619723442,0.1598204,86638.0,86637.0,0.1171818]
[1743619725647,0.1598204,86638.0,86637.0,0.00176]
[1743619725847,0.28567651,86638.0,86637.0,0.00176]
[1743619726144,0.73431651,86638.0,86637.0,1e-07]
[1743619726341,0.73431651,86638.0,86632.0,0.20733836]
[1743619726342,0.1154271,86633.0,86632.0,0.20733836]
[1743619726541,0.3754271,86633.0,86632.0,0.20853836]
[1743619726742,0.5900462,86633.0,86632.0,0.20853836]
[1743619728250,0.0577155,86630.0,86623.0,0.13000143]
[1743619728450,0.1154471,86618.0,86605.0,0.62706412]
[1743619728752,0.31723101,86618.0,86607.0,0.1154612]
[1743619728952,0.32723101,86618.0,86605.0,0.51160052]
[1743619729139,0.32723101,86618.0,86617.0,0.26527523]
[1743619729344,0.41653101,86618.0,86617.0,0.26527523]
[1743619730160,0.41733101,86618.0,86617.0,0.26607523]
[1743619730843,0.41733101,86618.0,86617.0,0.23681053]
[1743619731942,0.41733101,86618.0,86617.0,0.0008]
[1743619732146,0.41733101,86618.0,86609.0,0.00017315]
[1743619732147,0.1154511,86615.0,86614.0,0.27653196]
[1743619732347,0.4870511,86615.0,86614.0,0.27733196]
[1743619732658,0.60765821,86615.0,86614.0,0.27733196]
[1743619734350,0.69585821,86615.0,86614.0,0.27733196]
[1743619735848,0.69585821,86615.0,86614.0,0.0008]
[1743619736049,0.1154577,86610.0,86609.0,0.00017315]
[1743619736249,0.1163377,86610.0,86609.0,0.00105315]
[1743619736445,0.33127239,86610.0,86609.0,0.00105315]
[1743619737259,0.33127239,86610.0,86609.0,0.00017315]
[1743619738650,0.58127239,86610.0,86609.0,0.00017315]
[1743619739655,0.58127239,86610.0,86609.0,0.11563225]
[1743619739855,0.24187239,86610.0,86609.0,0.11563225]
[1743619740049,0.12641469,86610.0,86609.0,0.47643225]
[1743619740250,0.00088,86610.0,86609.0,0.47731225]
[1743619740559,0.13786821,86616.0,86615.0,0.1154511]
[1743619740746,0.13786821,86616.0,86615.0,0.1163311]
[1743619740951,0.13866821,86616.0,86615.0,0.1163311]
[1743619741157,0.13786821,86616.0,86615.0,0.1163311]
[1743619741363,0.13786821,86616.0,86615.0,0.2104311]
[1743619741547,0.20577671,86630.0,86624.0,0.0577195]
[1743619741751,0.20637672,86630.0,86629.0,0.4762324]
[1743619741952,0.20637672,86630.0,86629.0,0.4770324]
[1743619742155,0.32180782,86630.0,86629.0,0.4770324]
[1743619742350,0.11603111,86630.0,86629.0,0.4770324]
[1743619742556,0.11603111,86630.0,86629.0,0.0008]
[1743619743157,0.21023111,86630.0,86629.0,0.0008]
[1743619744251,0.1154364,86626.0,86625.0,0.0474]
[1743619744457,0.1162764,86626.0,86625.0,0.0482]
[1743619745956,0.1162764,86626.0,86625.0,0.0916]
[1743619746157,0.1162764,86626.0,86625.0,0.2070378]
[1743619746359,0.1162764,86626.0,86625.0,0.0916]
[1743619746769,0.1162764,86626.0,86625.0,0.2070378]
[1743619750469,0.1162764,86626.0,86625.0,0.0482]
[1743619751169,0.1666764,86626.0,86625.0,0.1636378]
[1743619751365,0.1162764,86626.0,86625.0,0.1636378]
[1743619751572,0.1162764,86626.0,86625.0,0.2135378]
[1743619752273,0.1162764,86626.0,86625.0,0.0981]
[1743619752873,0.1162764,86626.0,86625.0,0.0482]
[1743619753362,0.1666764,86626.0,86625.0,0.0008]
[1743619753666,0.1154418,86622.0,86621.0,0.3608]
[1743619753871,0.19388181,86622.0,86621.0,0.3614]
[1743619754072,0.31466177,86622.0,86621.0,0.3614]
[1743619754670,0.40796177,86622.0,86621.0,0.3614]
[1743619755059,0.64796177,86622.0,86621.0,0.0006]
[1743619755265,0.1154551,86612.0,86611.0,0.0943]
[1743619755467,0.1160951,86612.0,86611.0,0.09498]
[1743619755673,0.2093951,86612.0,86611.0,0.09498]
[1743619758162,0.1160951,86612.0,86611.0,0.09498]
[1743619758863,0.1160951,86612.0,86611.0,0.2104364]
[1743619759064,0.1160951,86612.0,86611.0,0.09498]
[1743619759772,0.1637951,86612.0,86611.0,0.09498]
[1743619759970,0.2118951,86612.0,86611.0,0.09498]
[1743619760500,0.1160951,86612.0,86611.0,0.09498]
[1743619760661,0.0577198,86624.0,86619.0,0.1154458]
[1743619760866,0.17328538,86620.0,86619.0,0.1162058]
[1743619761164,0.17404538,86620.0,86619.0,0.2135058]
[1743619764567,0.17404538,86620.0,86619.0,0.09806]
[1743619764771,0.26754538,86620.0,86619.0,0.04836]
[1743619764973,0.43972103,86620.0,86619.0,0.0476]
[1743619765674,0.1154577,86610.0,86606.0,0.3608]
[1743619765872,0.1162177,86610.0,86609.0,0.00097315]
[1743619766178,0.1635177,86610.0,86609.0,0.00097315]
[1743619766975,0.2093177,86610.0,86609.0,0.00097315]
[1743619767270,0.34078073,86610.0,86609.0,0.00017315]
[1743619767680,0.34078073,86610.0,86609.0,0.00093315]
[1743619768484,0.63226489,86610.0,86609.0,0.00017315]
[1743619775076,0.35226489,86610.0,86609.0,0.00017315]
[1743619775874,0.35226489,86610.0,86609.0,0.00093315]
[1743619776081,0.35226489,86610.0,86609.0,0.00017315]
[1743619776279,0.35226489,86610.0,86609.0,0.00093315]
[1743619776984,0.12770186,86610.0,86609.0,0.11563225]
[1743619777187,0.12770186,86610.0,86609.0,0.11639225]
[1743619777383,0.00076,86610.0,86609.0,0.11639225]
[1743619777680,0.00076,86610.0,86609.0,0.22082005]
[1743619777681,0.1154577,86610.0,86609.0,0.22082005]
[1743619777874,0.1162977,86610.0,86609.0,0.22082005]
[1743619779985,0.1162977,86610.0,86609.0,0.04763315]
[1743619780786,0.1162977,86610.0,86609.0,0.09723315]
[1743619781370,0.1162977,86610.0,86609.0,0.21269225]
[1743619785087,0.00084,86610.0,86609.0,0.21269225]
[1743619785285,0.1731853,86612.0,86611.0,0.1154564]
[1743619785481,0.00076,86612.0,86611.0,0.1162164]
[1743619785675,0.00011478,86620.0,86619.0,0.1154458]
[1743619785877,0.17253778,86625.0,86624.0,0.1154391]
[1743619786080,0.17333778,86625.0,86624.0,0.50739913]
[1743619786276,0.17333778,86625.0,86624.0,0.60619245]
[1743619786581,0.17333778,86625.0,86624.0,0.61619245]
[1743619788083,0.17333778,86625.0,86624.0,0.62477661]
[1743619788284,0.17333778,86625.0,86624.0,0.62485243]
[1743619789081,0.17333778,86625.0,86624.0,0.60975876]
[1743619790291,0.0576998,86654.0,86639.0,0.1154191]
[1743619790586,0.0461,86655.0,86645.0,0.1154111]
[1743619790889,0.27756215,86646.0,86645.0,0.1307866]
[1743619791082,0.27756215,86646.0,86645.0,0.14687706]
[1743619791588,0.1157978,86656.0,86654.0,0.1153978]
[1743619791794,0.1171165,86656.0,86655.0,0.6237978]
[1743619791996,0.1171165,86656.0,86655.0,0.6251178]
[1743619793593,0.00172,86656.0,86655.0,0.6251178]
[1743619794096,0.1171165,86656.0,86655.0,0.6251178]
[1743619794497,0.00172,86656.0,86655.0,0.6251178]
[1743619794998,0.1171165,86656.0,86655.0,0.5771178]
[1743619795303,0.1642965,86656.0,86655.0,0.5771178]
[1743619796088,0.0489,86656.0,86655.0,0.2163178]
[1743619796488,0.0969,86656.0,86655.0,0.2163178]
[1743619796696,0.2122965,86656.0,86655.0,0.2163178]
[1743619796895,0.2122965,86656.0,86655.0,0.23134861]
[1743619797097,0.2122965,86656.0,86655.0,0.18104861]
[1743619799198,0.0969,86656.0,86655.0,0.22774861]
[1743619799504,0.0969,86656.0,86655.0,0.58854861]
[1743619799810,0.0489,86656.0,86655.0,0.58854861]
[1743619799995,0.05022,86656.0,86655.0,0.58854861]
[1743619800399,0.05022,86656.0,86655.0,0.54184861]
[1743619800603,0.1642965,86656.0,86655.0,0.01635081]
[1743619800806,0.16489651,86656.0,86655.0,0.01503081]
[1743619801104,0.16489651,86656.0,86655.0,0.01639081]
[1743619801307,0.16489651,86656.0,86655.0,0.00136]
[1743619802001,0.0576989,86655.0,86654.0,0.1153991]
[1743619802299,0.0576989,86655.0,86654.0,0.13182276]
[1743619802300,0.1080189,86655.0,86654.0,0.13182276]
[1743619802509,0.1080189,86655.0,86654.0,0.17932276]
[1743619803299,0.1555189,86655.0,86654.0,0.17932276]
[1743619803499,0.1555189,86655.0,86654.0,0.06392366]
[1743619803907,0.1555189,86655.0,86654.0,0.17932276]
[1743619806303,0.1555189,86655.0,86654.0,0.1642191]
[1743619806506,0.1555189,86655.0,86654.0,0.04882]
[1743619807202,0.1555189,86655.0,86654.0,0.00132]
[1743619807703,0.1555189,86655.0,86654.0,0.1167191]
[1743619808502,0.1555189,86655.0,86654.0,0.00132]
[1743619809209,0.28728226,86655.0,86654.0,0.00132]
[1743619809403,0.1154284,86632.0,86630.0,0.27613298]
[1743619809603,0.1154284,86632.0,86631.0,0.00109315]
[1743619809804,0.12397253,86632.0,86631.0,0.00109315]
[1743619810004,0.12493254,86632.0,86631.0,0.00109315]
[1743619810914,0.12493254,86632.0,86631.0,0.11652295]
[1743619811102,0.21813254,86632.0,86631.0,0.11652295]
[1743619811802,0.21813254,86632.0,86631.0,0.00109315]
[1743619812211,0.21813254,86632.0,86631.0,0.11652295]
[1743619812413,0.21813254,86632.0,86631.0,0.16242295]
[1743619813015,0.21813254,86632.0,86631.0,0.04699315]
[1743619817714,0.21813254,86632.0,86631.0,0.16242295]
[1743619818212,0.21813254,86632.0,86631.0,0.04699315]
[1743619818715,0.21813254,86632.0,86631.0,0.16242295]
[1743619818914,0.21813254,86632.0,86631.0,0.04699315]
[1743619819416,0.21813254,86632.0,86631.0,0.16242295]
[1743619819910,0.21813254,86632.0,86631.0,0.04699315]
[1743619820107,0.1154391,86624.0,86612.0,0.4716636]
[1743619820314,0.1160791,86624.0,86623.0,0.27677298]
[1743619820527,0.34534354,86624.0,86623.0,0.27677298]
[1743619821312,0.34534354,86624.0,86623.0,0.00064]
[1743619823722,0.32990444,86624.0,86617.0,0.34525958]
[1743619824021,0.1154551,86612.0,86611.0,0.04012577]
[1743619824318,0.8048951,86612.0,86611.0,0.04076577]
[1743619824518,0.93783297,86612.0,86611.0,0.04012577]
[1743619825019,0.0577325,86605.0,86602.0,0.27563941]
[1743619825216,0.4762671,86603.0,86602.0,0.27623941]
[1743619825423,0.4862671,86603.0,86602.0,0.27623941]
[1743619825619,0.70920026,86603.0,86602.0,0.27623941]
[1743619826120,0.70920026,86603.0,86602.0,0.39170781]
[1743619826320,0.70920026,86603.0,86602.0,0.27623941]
[1743619828116,0.69920026,86603.0,86602.0,0.27623941]
[1743619828509,0.69920026,86603.0,86602.0,0.0006]
[1743619828713,0.1154684,86602.0,86601.0,0.0475]
[1743619828912,0.11634841,86602.0,86601.0,0.0475]